[Event "*** Titled Tuesday Blitz"]
[Site "Chess.com"]
[Date "2021.03.30"]
[Round "10"]
[White "korkmaz16"]
[Black "MikeSailer"]
[Result "1/2-1/2"]
[WhiteElo "2438"]
[BlackElo "2132"]
[TimeControl "180+1"]
[EndTime "11:59:52 PDT"]
[Termination "Game drawn by agreement"]

1. e4 {[%clk 0:03:00.9]} 1... d5 {[%clk 0:02:59.2]} 2. exd5 {[%clk 0:02:59]}
2... Qxd5 {[%clk 0:02:58.4]} 3. Nc3 {[%clk 0:02:58.5]} 3... Qd6 {[%clk
0:02:57.2]} 4. d4 {[%clk 0:02:58.6]} 4... Nf6 {[%clk 0:02:55.9]} 5. Nf3 {[%clk
0:02:58.3]} 5... c6 {[%clk 0:02:55.8]} 6. Ne5 {[%clk 0:02:57.8]} 6... Bf5 {[%clk
0:02:55.3]} 7. Nc4 {[%clk 0:02:49]} 7... Qc7 {[%clk 0:02:54.1]} 8. g3 {[%clk
0:02:39.6]} 8... e6 {[%clk 0:02:54.2]} 9. Bf4 {[%clk 0:02:38.8]} 9... Qd8 {[%clk
0:02:54.9]} 10. Bg2 {[%clk 0:02:38.9]} 10... Be7 {[%clk 0:02:55.5]} 11. O-O
{[%clk 0:02:38.6]} 11... h6 {[%clk 0:02:56.1]} 12. Re1 {[%clk 0:02:37.8]} 12...
O-O {[%clk 0:02:56.4]} 13. Qd2 {[%clk 0:02:35.9]} 13... Na6 {[%clk 0:02:52.8]}
14. Rad1 {[%clk 0:02:33.4]} 14... Nc7 {[%clk 0:02:53]} 15. Ne3 {[%clk
0:02:17.3]} 15... Bh7 {[%clk 0:02:51.6]} 16. Qe2 {[%clk 0:02:11.9]} 16... Ncd5
{[%clk 0:02:51.9]} 17. Nexd5 {[%clk 0:02:10.5]} 17... Nxd5 {[%clk 0:02:52.1]}
18. Bd2 {[%clk 0:02:03.1]} 18... Nxc3 {[%clk 0:02:52.1]} 19. Bxc3 {[%clk
0:02:02.8]} 19... a5 {[%clk 0:02:44.7]} 20. d5 {[%clk 0:01:52.5]} 20... cxd5
{[%clk 0:02:40.3]} 21. Bxd5 {[%clk 0:01:51]} 21... exd5 {[%clk 0:02:32.3]} 22.
Qxe7 {[%clk 0:01:50.6]} 22... Qxe7 {[%clk 0:02:32.6]} 23. Rxe7 {[%clk
0:01:51.3]} 23... Bxc2 {[%clk 0:02:32.9]} 24. Rxd5 {[%clk 0:01:51.7]} 24... Rfd8
{[%clk 0:01:59.9]} 25. Rxa5 {[%clk 0:01:07.3]} 25... Rxa5 {[%clk 0:01:52.8]} 26.
Bxa5 {[%clk 0:01:06.4]} 26... Rd1+ {[%clk 0:01:47.6]} 27. Re1 {[%clk 0:01:05.7]}
27... Rxe1+ {[%clk 0:01:43.2]} 28. Bxe1 {[%clk 0:01:05.1]} 28... Kf8 {[%clk
0:01:37.9]} 29. f4 {[%clk 0:01:00.4]} 29... Ke7 {[%clk 0:01:38.5]} 30. Kf2
{[%clk 0:01:00.8]} 30... Kd6 {[%clk 0:01:38.9]} 31. Bc3 {[%clk 0:01:00.1]} 31...
g6 {[%clk 0:01:38.6]} 32. Ke3 {[%clk 0:00:58.2]} 32... Kd5 {[%clk 0:01:38.3]}
33. g4 {[%clk 0:00:50.1]} 33... Bd1 {[%clk 0:01:33.9]} 34. h3 {[%clk 0:00:49.7]}
34... h5 {[%clk 0:01:31.9]} 35. gxh5 {[%clk 0:00:47]} 35... Bxh5 {[%clk
0:01:31.5]} 36. f5 {[%clk 0:00:44.2]} 36... b5 {[%clk 0:01:18.2]} 37. Kf4 {[%clk
0:00:40.2]} 37... Kc4 {[%clk 0:01:06.7]} 38. a3 {[%clk 0:00:39.5]} 38... Kb3
{[%clk 0:00:52.7]} 39. Kg5 {[%clk 0:00:38.9]} 39... Kc4 {[%clk 0:00:51.1]} 40.
h4 {[%clk 0:00:38]} 40... Kd5 {[%clk 0:00:50.5]} 41. f6 {[%clk 0:00:31.1]} 41...
Ke6 {[%clk 0:00:43.4]} 42. Kf4 {[%clk 0:00:26.7]} 42... Bd1 {[%clk 0:00:38.9]}
43. Ke4 {[%clk 0:00:25.3]} 43... Bc2+ {[%clk 0:00:38.2]} 44. Kd4 {[%clk
0:00:25.6]} 44... Bd1 {[%clk 0:00:36.8]} 45. Kc5 {[%clk 0:00:25.6]} 45... Be2
{[%clk 0:00:36.5]} 46. b3 {[%clk 0:00:23.5]} 46... Kd7 {[%clk 0:00:36.4]} 47. a4
{[%clk 0:00:23.4]} 47... bxa4 {[%clk 0:00:36.6]} 48. bxa4 {[%clk 0:00:24.3]}
48... Kc7 {[%clk 0:00:36]} 49. a5 {[%clk 0:00:24.8]} 49... Kb7 {[%clk 0:00:35]}
50. Kd6 {[%clk 0:00:24.4]} 50... Bc4 {[%clk 0:00:33.6]} 51. Kc5 {[%clk
0:00:24.3]} 51... Ba2 {[%clk 0:00:32.8]} 52. Kb5 {[%clk 0:00:24.1]} 52... Be6
{[%clk 0:00:31.5]} 53. a6+ {[%clk 0:00:24.6]} 53... Ka8 {[%clk 0:00:31.3]} 54.
Bd4 {[%clk 0:00:25.5]} 54... Ba2 {[%clk 0:00:31.1]} 55. Kc5 {[%clk 0:00:25.4]}
55... Be6 {[%clk 0:00:31]} 56. Kd6 {[%clk 0:00:25.9]} 56... Bc4 {[%clk 0:00:31]}
57. Ke7 {[%clk 0:00:26.4]} 57... Bb3 {[%clk 0:00:31.2]} 58. Be3 {[%clk
0:00:22.3]} 58... Ba2 {[%clk 0:00:31.8]} 59. Kf8 {[%clk 0:00:22.8]} 59... Bb3
{[%clk 0:00:31.9]} 60. Kg7 {[%clk 0:00:23.7]} 60... Ba2 {[%clk 0:00:32]} 61. Kh6
{[%clk 0:00:24.6]} 61... Bb3 {[%clk 0:00:32.1]} 62. Kg5 {[%clk 0:00:25.5]} 62...
Ba2 {[%clk 0:00:30.6]} 63. Kf4 {[%clk 0:00:26.4]} 63... Bb3 {[%clk 0:00:30.9]}
64. Ke5 {[%clk 0:00:27.3]} 64... Ba2 {[%clk 0:00:31.3]} 65. Kd6 {[%clk 0:00:28]}
65... Bb3 {[%clk 0:00:31.5]} 66. Kc5 {[%clk 0:00:28.9]} 66... Ba2 {[%clk
0:00:31.9]} 67. Bf2 {[%clk 0:00:29]} 67... Be6 {[%clk 0:00:31.1]} 68. Kd6 {[%clk
0:00:29.1]} 68... Ba2 {[%clk 0:00:31.1]} 69. Kc7 {[%clk 0:00:29.6]} 69... Be6
{[%clk 0:00:30.6]} 70. Kd6 {[%clk 0:00:28.8]} 70... Ba2 {[%clk 0:00:30.6]} 71.
Kc6 {[%clk 0:00:27.2]} 71... Bc4 {[%clk 0:00:29.5]} 72. Kb6 {[%clk 0:00:24]}
72... Be6 {[%clk 0:00:29.2]} 73. Kc5 {[%clk 0:00:19.1]} 73... Ba2 {[%clk
0:00:28.8]} 74. Kd6 {[%clk 0:00:19.5]} 74... Bc4 {[%clk 0:00:27.9]} 75. Ke5
{[%clk 0:00:20]} 75... Bxa6 {[%clk 0:00:24.2]} 76. Kf4 {[%clk 0:00:19.9]} 76...
Bc4 {[%clk 0:00:24.2]} 77. Kg5 {[%clk 0:00:20.8]} 77... Be6 {[%clk 0:00:24.2]}
78. Kh6 {[%clk 0:00:21.7]} 78... Kb7 {[%clk 0:00:24.4]} 79. Kg7 {[%clk
0:00:21.7]} 79... Kc6 {[%clk 0:00:24.5]} 80. Kh6 {[%clk 0:00:21.8]} 80... Kd5
{[%clk 0:00:24.8]} 81. h5 {[%clk 0:00:22.7]} 81... gxh5 {[%clk 0:00:24.9]} 82.
Kxh5 {[%clk 0:00:23.6]} 82... Ke5 {[%clk 0:00:25.2]} 83. Kg5 {[%clk 0:00:23.6]}
83... Ke4 {[%clk 0:00:25.3]} 84. Be1 {[%clk 0:00:23.4]} 84... Kf3 {[%clk
0:00:23.3]} 85. Bc3 {[%clk 0:00:23.2]} 85... Ke4 {[%clk 0:00:23.4]} 86. Ba1
{[%clk 0:00:23.4]} 86... Kf3 {[%clk 0:00:24.2]} 87. Kh6 {[%clk 0:00:23.6]} 87...
Ke4 {[%clk 0:00:24.6]} 88. Kg7 {[%clk 0:00:24.2]} 88... Kf5 {[%clk 0:00:25.4]}
89. Bb2 {[%clk 0:00:24.7]} 89... Kg4 {[%clk 0:00:26]} 90. Ba1 {[%clk 0:00:25.6]}
90... Kf5 {[%clk 0:00:26.5]} 91. Bb2 {[%clk 0:00:25.4]} 1/2-1/2

[Event "*** Titled Tuesday Blitz"]
[Site "Chess.com"]
[Date "2021.03.30"]
[Round "10"]
[White "Horizonevent"]
[Black "Loy_Konstantin"]
[Result "1-0"]
[WhiteElo "2535"]
[BlackElo "2346"]
[TimeControl "180+1"]
[EndTime "11:59:58 PDT"]
[Termination "Horizonevent won on time"]

1. e4 {[%clk 0:03:00.9]} 1... c5 {[%clk 0:02:54.5]} 2. Nf3 {[%clk 0:03:00.7]}
2... d6 {[%clk 0:02:54.7]} 3. d4 {[%clk 0:03:00.9]} 3... cxd4 {[%clk 0:02:55.6]}
4. Nxd4 {[%clk 0:03:01.6]} 4... Nf6 {[%clk 0:02:56.1]} 5. Nc3 {[%clk 0:03:01]}
5... g6 {[%clk 0:02:56.5]} 6. g3 {[%clk 0:03:01.2]} 6... Nc6 {[%clk 0:02:55.8]}
7. Bg2 {[%clk 0:03:00.1]} 7... Nxd4 {[%clk 0:02:55.8]} 8. Qxd4 {[%clk
0:02:59.8]} 8... Bg7 {[%clk 0:02:56.4]} 9. O-O {[%clk 0:03:00]} 9... O-O {[%clk
0:02:57]} 10. Qd3 {[%clk 0:02:58.7]} 10... Be6 {[%clk 0:02:56.9]} 11. Be3 {[%clk
0:02:53.8]} 11... Qc7 {[%clk 0:02:57]} 12. Rfd1 {[%clk 0:02:52.9]} 12... a6
{[%clk 0:02:50.6]} 13. Bd4 {[%clk 0:02:44.8]} 13... b5 {[%clk 0:02:47]} 14. Nd5
{[%clk 0:02:39.4]} 14... Nxd5 {[%clk 0:02:31.6]} 15. Bxg7 {[%clk 0:02:01.5]}
15... Nb4 {[%clk 0:02:11.6]} 16. Qc3 {[%clk 0:01:59.3]} 16... Qxc3 {[%clk
0:01:34.7]} 17. Bxc3 {[%clk 0:01:58.2]} 17... Nxc2 {[%clk 0:01:25]} 18. Rac1
{[%clk 0:01:57.5]} 18... b4 {[%clk 0:01:25.5]} 19. Rxc2 {[%clk 0:01:39.5]} 19...
bxc3 {[%clk 0:01:25.1]} 20. Rxc3 {[%clk 0:01:39.8]} 20... Bxa2 {[%clk
0:01:05.9]} 21. e5 {[%clk 0:01:20.6]} 21... Rab8 {[%clk 0:00:58.9]} 22. exd6
{[%clk 0:01:02.5]} 22... exd6 {[%clk 0:00:59.8]} 23. Rxd6 {[%clk 0:00:53.2]}
23... Rxb2 {[%clk 0:00:58.9]} 24. Rxa6 {[%clk 0:00:47.5]} 24... Rb1+ {[%clk
0:00:47.9]} 25. Bf1 {[%clk 0:00:47]} 25... Bd5 {[%clk 0:00:36.9]} 26. f3 {[%clk
0:00:18.1]} 26... Rfb8 {[%clk 0:00:26.3]} 27. Kf2 {[%clk 0:00:18.2]} 27... R8b2+
{[%clk 0:00:20.1]} 28. Be2 {[%clk 0:00:17.6]} 28... Bb7 {[%clk 0:00:16.8]} 29.
Rd6 {[%clk 0:00:14.3]} 29... Kg7 {[%clk 0:00:14.3]} 30. h4 {[%clk 0:00:10]}
30... h5 {[%clk 0:00:14.1]} 31. Re3 {[%clk 0:00:08.2]} 31... Rb6 {[%clk
0:00:10.2]} 32. Rxb6 {[%clk 0:00:07.7]} 32... Rxb6 {[%clk 0:00:09.6]} 33. Ra3
{[%clk 0:00:08.3]} 33... Bd5 {[%clk 0:00:09.4]} 34. Ke3 {[%clk 0:00:08.1]} 34...
Rb3+ {[%clk 0:00:08.6]} 35. Rxb3 {[%clk 0:00:08.6]} 35... Bxb3 {[%clk
0:00:09.5]} 36. f4 {[%clk 0:00:09.4]} 36... Kf6 {[%clk 0:00:09]} 37. Bd3 {[%clk
0:00:10.3]} 37... Ke6 {[%clk 0:00:07.5]} 38. Kd4 {[%clk 0:00:10.7]} 38... Kd6
{[%clk 0:00:06.4]} 39. Be4 {[%clk 0:00:11]} 39... Be6 {[%clk 0:00:06.4]} 40. Bd3
{[%clk 0:00:11.1]} 40... Bb3 {[%clk 0:00:06.5]} 41. f5 {[%clk 0:00:11.7]} 41...
gxf5 {[%clk 0:00:02.4]} 42. Bxf5 {[%clk 0:00:12.6]} 42... Bd1 {[%clk 0:00:02.9]}
43. Bc8 {[%clk 0:00:10.5]} 43... f6 {[%clk 0:00:02.5]} 44. Ke3 {[%clk
0:00:10.5]} 44... Ke5 {[%clk 0:00:02.2]} 45. Bd7 {[%clk 0:00:10]} 45... Kd6
{[%clk 0:00:01.9]} 46. Be8 {[%clk 0:00:09.7]} 46... Ke5 {[%clk 0:00:02.5]} 47.
Bf7 {[%clk 0:00:09.5]} 47... f5 {[%clk 0:00:02.5]} 48. Bg6 {[%clk 0:00:09.5]}
48... Bg4 {[%clk 0:00:02.9]} 49. Bh7 {[%clk 0:00:09.6]} 49... Bd1 {[%clk
0:00:02.7]} 50. Bg6 {[%clk 0:00:09.9]} 50... Bg4 {[%clk 0:00:03.6]} 51. Be8
{[%clk 0:00:10.7]} 51... Kf6 {[%clk 0:00:03.8]} 52. Kf4 {[%clk 0:00:10.5]} 52...
Bd1 {[%clk 0:00:03.5]} 53. Bd7 {[%clk 0:00:10.5]} 53... Bg4 {[%clk 0:00:03.4]}
54. Bc8 {[%clk 0:00:11.4]} 54... Bh3 {[%clk 0:00:03.7]} 55. Bb7 {[%clk
0:00:10.5]} 55... Bg4 {[%clk 0:00:03.9]} 56. Bc6 {[%clk 0:00:10.7]} 56... Bh3
{[%clk 0:00:04.2]} 57. Bf3 {[%clk 0:00:10.9]} 57... Kg6 {[%clk 0:00:03.1]} 58.
Ke5 {[%clk 0:00:10.7]} 58... Bf1 {[%clk 0:00:01.6]} 59. Bd5 {[%clk 0:00:10.8]}
59... Bh3 {[%clk 0:00:01.4]} 60. Be6 {[%clk 0:00:10.1]} 60... Bg4 {[%clk
0:00:01.7]} 61. Bd7 {[%clk 0:00:10]} 61... Bh3 {[%clk 0:00:01.7]} 62. Be8+
{[%clk 0:00:10.4]} 62... Kg7 {[%clk 0:00:01.5]} 63. Bxh5 {[%clk 0:00:10]} 63...
Kh6 {[%clk 0:00:01.6]} 64. Bf3 {[%clk 0:00:10.1]} 64... Kg7 {[%clk 0:00:01.6]}
65. Kf4 {[%clk 0:00:09.9]} 65... Kg6 {[%clk 0:00:02.5]} 66. Bb7 {[%clk
0:00:09.7]} 66... Kf6 {[%clk 0:00:02.8]} 67. Bc8 {[%clk 0:00:10]} 67... Bg4
{[%clk 0:00:03.5]} 68. Bb7 {[%clk 0:00:09.8]} 68... Bh3 {[%clk 0:00:03.9]} 69.
Ba6 {[%clk 0:00:10.7]} 69... Bg4 {[%clk 0:00:04.1]} 70. Bd3 {[%clk 0:00:11.2]}
70... Bh3 {[%clk 0:00:04.2]} 71. Be2 {[%clk 0:00:11.9]} 71... Kg6 {[%clk
0:00:03.7]} 72. Bf3 {[%clk 0:00:11.9]} 72... Kf6 {[%clk 0:00:04]} 73. h5 {[%clk
0:00:11.1]} 73... Bf1 {[%clk 0:00:03.2]} 74. Bd1 {[%clk 0:00:09.8]} 74... Bb5
{[%clk 0:00:02.9]} 75. Bc2 {[%clk 0:00:09.6]} 75... Be8 {[%clk 0:00:02.8]} 76.
Bd1 {[%clk 0:00:07.3]} 76... Bf7 {[%clk 0:00:03]} 77. Be2 {[%clk 0:00:07.1]}
77... Be8 {[%clk 0:00:03.2]} 78. Bd3 {[%clk 0:00:05.3]} 78... Bxh5 {[%clk
0:00:02.9]} 79. Bxf5 {[%clk 0:00:06.1]} 79... Bd1 {[%clk 0:00:03.1]} 80. Be4
{[%clk 0:00:04.9]} 80... Be2 {[%clk 0:00:03.2]} 81. Bf5 {[%clk 0:00:05.3]} 81...
Bd1 {[%clk 0:00:03.6]} 82. Bg4 {[%clk 0:00:05.9]} 82... Bc2 {[%clk 0:00:02.9]}
83. Bh5 {[%clk 0:00:06.1]} 83... Bf5 {[%clk 0:00:02.2]} 84. Bf3 {[%clk
0:00:05.8]} 84... Bc2 {[%clk 0:00:02.1]} 85. Be4 {[%clk 0:00:05.8]} 1-0

[Event "*** Titled Tuesday Blitz"]
[Site "Chess.com"]
[Date "2021.03.30"]
[Round "10"]
[White "MaevskiyNikolay"]
[Black "Bigfish1995"]
[Result "1/2-1/2"]
[WhiteElo "2565"]
[BlackElo "2982"]
[TimeControl "180+1"]
[EndTime "12:00:05 PDT"]
[Termination "Game drawn by repetition"]

1. Nf3 {[%clk 0:03:00.8]} 1... d5 {[%clk 0:02:58.7]} 2. c4 {[%clk 0:03:00.4]}
2... e5 {[%clk 0:02:55.2]} 3. cxd5 {[%clk 0:02:57.1]} 3... Bd6 {[%clk
0:02:51.5]} 4. Nc3 {[%clk 0:02:56.6]} 4... f5 {[%clk 0:02:50.2]} 5. d4 {[%clk
0:02:53.7]} 5... e4 {[%clk 0:02:49.6]} 6. Ne5 {[%clk 0:02:53.8]} 6... Nf6 {[%clk
0:02:49.4]} 7. Bf4 {[%clk 0:02:48.1]} 7... O-O {[%clk 0:02:48.1]} 8. e3 {[%clk
0:02:48.1]} 8... Nbd7 {[%clk 0:02:38.4]} 9. Nxd7 {[%clk 0:02:46.5]} 9... Bxd7
{[%clk 0:02:37.2]} 10. Bxd6 {[%clk 0:02:45.4]} 10... cxd6 {[%clk 0:02:38.1]} 11.
Be2 {[%clk 0:02:42.6]} 11... Qb6 {[%clk 0:02:13.9]} 12. Qb3 {[%clk 0:02:36.5]}
12... Qxb3 {[%clk 0:02:13.7]} 13. axb3 {[%clk 0:02:36]} 13... a6 {[%clk
0:02:14.6]} 14. h4 {[%clk 0:02:20]} 14... Rfc8 {[%clk 0:02:07.5]} 15. Kd2 {[%clk
0:02:19.5]} 15... Be8 {[%clk 0:02:04.1]} 16. f3 {[%clk 0:02:12]} 16... exf3
{[%clk 0:01:37.5]} 17. gxf3 {[%clk 0:02:11.7]} 17... Bf7 {[%clk 0:01:37.5]} 18.
e4 {[%clk 0:02:08.6]} 18... Re8 {[%clk 0:01:34]} 19. Bd3 {[%clk 0:02:07.6]}
19... Bh5 {[%clk 0:01:33.7]} 20. Rhf1 {[%clk 0:02:04.7]} 20... Re7 {[%clk
0:01:23.7]} 21. exf5 {[%clk 0:01:55.6]} 21... Bf7 {[%clk 0:01:12.9]} 22. Be4
{[%clk 0:01:45.6]} 22... Rd8 {[%clk 0:01:08.1]} 23. Rfe1 {[%clk 0:01:44.9]}
23... Kf8 {[%clk 0:01:07.6]} 24. b4 {[%clk 0:01:43.1]} 24... Rc7 {[%clk
0:01:02.3]} 25. Kd3 {[%clk 0:01:40.5]} 25... Nh5 {[%clk 0:00:57]} 26. b5 {[%clk
0:01:32.4]} 26... Nf4+ {[%clk 0:00:54.9]} 27. Kd2 {[%clk 0:01:32.5]} 27... Rb8
{[%clk 0:00:50.9]} 28. Reb1 {[%clk 0:01:17.2]} 28... axb5 {[%clk 0:00:32.7]} 29.
Nxb5 {[%clk 0:01:16.5]} 29... Rd7 {[%clk 0:00:33.3]} 30. Nc3 {[%clk 0:01:12.4]}
30... b5 {[%clk 0:00:29.6]} 31. b4 {[%clk 0:01:12.5]} 31... Rc7 {[%clk 0:00:30]}
32. Rc1 {[%clk 0:01:12.3]} 32... Rc4 {[%clk 0:00:29]} 33. Ne2 {[%clk 0:01:01.5]}
33... Nxe2 {[%clk 0:00:15.4]} 34. Kxe2 {[%clk 0:00:57.4]} 34... Rxb4 {[%clk
0:00:12.8]} 35. Rc7 {[%clk 0:00:48.7]} 35... Ra4 {[%clk 0:00:13]} 36. Rxa4
{[%clk 0:00:35.3]} 36... bxa4 {[%clk 0:00:12.6]} 37. Ra7 {[%clk 0:00:35.6]}
37... Be8 {[%clk 0:00:13.2]} 38. f6 {[%clk 0:00:30.1]} 38... gxf6 {[%clk
0:00:12.5]} 39. Bxh7 {[%clk 0:00:30.2]} 39... Rb2+ {[%clk 0:00:10.8]} 40. Ke3
{[%clk 0:00:29.9]} 40... Ra2 {[%clk 0:00:10.4]} 41. Ra8 {[%clk 0:00:23.7]} 41...
Ke7 {[%clk 0:00:09.8]} 42. Ra7+ {[%clk 0:00:23.2]} 42... Kf8 {[%clk 0:00:09.6]}
43. Bd3 {[%clk 0:00:20.2]} 43... a3 {[%clk 0:00:09.1]} 44. Ra8 {[%clk
0:00:17.3]} 44... Ke7 {[%clk 0:00:09.4]} 45. Ra7+ {[%clk 0:00:17.4]} 45... Kf8
{[%clk 0:00:09.7]} 46. Ra8 {[%clk 0:00:15.9]} 46... Ra1 {[%clk 0:00:06.6]} 47.
Bb5 {[%clk 0:00:12.4]} 47... a2 {[%clk 0:00:06.9]} 48. Rxe8+ {[%clk 0:00:10.4]}
48... Kf7 {[%clk 0:00:06.8]} 49. Ra8 {[%clk 0:00:05.9]} 49... Re1+ {[%clk
0:00:07.1]} 50. Kf4 {[%clk 0:00:05.5]} 50... a1=Q {[%clk 0:00:08]} 51. Rxa1
{[%clk 0:00:05.2]} 51... Rxa1 {[%clk 0:00:08.9]} 52. Bd7 {[%clk 0:00:05.5]}
52... Rd1 {[%clk 0:00:08]} 53. Ke3 {[%clk 0:00:05.2]} 53... Rh1 {[%clk
0:00:07.3]} 54. Be6+ {[%clk 0:00:05.2]} 54... Kg6 {[%clk 0:00:07.6]} 55. Kf4
{[%clk 0:00:04.2]} 55... Rxh4+ {[%clk 0:00:07.9]} 56. Ke3 {[%clk 0:00:04.4]}
56... Kg5 {[%clk 0:00:08.3]} 57. Bd7 {[%clk 0:00:04.3]} 57... f5 {[%clk
0:00:08.6]} 58. Be6 {[%clk 0:00:04.5]} 58... f4+ {[%clk 0:00:08.7]} 59. Ke2
{[%clk 0:00:04.4]} 59... Rh2+ {[%clk 0:00:08.8]} 60. Kd3 {[%clk 0:00:04.4]}
60... Rf2 {[%clk 0:00:08.4]} 61. Bg4 {[%clk 0:00:04.4]} 61... Ra2 {[%clk
0:00:07.7]} 62. Kc4 {[%clk 0:00:04.3]} 62... Ra5 {[%clk 0:00:07.4]} 63. Be6
{[%clk 0:00:03.5]} 63... Kh4 {[%clk 0:00:07.3]} 64. Kd3 {[%clk 0:00:03.4]} 64...
Kg3 {[%clk 0:00:06.7]} 65. Ke4 {[%clk 0:00:04.1]} 65... Ra3 {[%clk 0:00:06.5]}
66. Bg4 {[%clk 0:00:04.7]} 66... Re3+ {[%clk 0:00:04.7]} 67. Kf5 {[%clk
0:00:04.8]} 67... Rxf3 {[%clk 0:00:03.1]} 68. Bxf3 {[%clk 0:00:05.2]} 68... Kxf3
{[%clk 0:00:04]} 69. Ke6 {[%clk 0:00:06.1]} 69... Ke4 {[%clk 0:00:04.6]} 70.
Kxd6 {[%clk 0:00:07]} 70... f3 {[%clk 0:00:05.5]} 71. Kc6 {[%clk 0:00:07.2]}
71... f2 {[%clk 0:00:06.4]} 72. d6 {[%clk 0:00:07.3]} 72... f1=Q {[%clk
0:00:07.3]} 73. d7 {[%clk 0:00:08.2]} 73... Qc4+ {[%clk 0:00:07.3]} 74. Kd6
{[%clk 0:00:08.2]} 74... Qd5+ {[%clk 0:00:05.9]} 75. Ke7 {[%clk 0:00:09.1]}
75... Qg5+ {[%clk 0:00:05.9]} 76. Ke8 {[%clk 0:00:09.3]} 76... Qg6+ {[%clk
0:00:06]} 77. Ke7 {[%clk 0:00:09.4]} 77... Qg7+ {[%clk 0:00:05.7]} 78. Ke8
{[%clk 0:00:09.7]} 78... Qh8+ {[%clk 0:00:05.4]} 79. Ke7 {[%clk 0:00:10]} 79...
Qh4+ {[%clk 0:00:05.2]} 80. Ke8 {[%clk 0:00:10]} 80... Qh5+ {[%clk 0:00:05.5]}
81. Ke7 {[%clk 0:00:10.3]} 81... Qg5+ {[%clk 0:00:05.7]} 82. Ke8 {[%clk
0:00:10.5]} 82... Qg6+ {[%clk 0:00:05.3]} 83. Ke7 {[%clk 0:00:10.8]} 83... Qh7+
{[%clk 0:00:05.3]} 84. Ke8 {[%clk 0:00:11.1]} 84... Qh5+ {[%clk 0:00:03.6]} 85.
Ke7 {[%clk 0:00:11.4]} 85... Qg5+ {[%clk 0:00:03.8]} 1/2-1/2

[Event "*** Titled Tuesday Blitz"]
[Site "Chess.com"]
[Date "2021.03.30"]
[Round "11"]
[White "sorrm8thatscheckm8"]
[Black "jcibarra"]
[Result "0-1"]
[WhiteElo "2639"]
[BlackElo "2853"]
[TimeControl "180+1"]
[EndTime "12:04:24 PDT"]
[Termination "jcibarra won by resignation"]

1. d4 {[%clk 0:03:00.1]} 1... Nf6 {[%clk 0:02:57.8]} 2. c4 {[%clk 0:03:00.8]}
2... d6 {[%clk 0:02:57.3]} 3. Nf3 {[%clk 0:03:01]} 3... g6 {[%clk 0:02:57.5]} 4.
g3 {[%clk 0:03:00.4]} 4... Bg7 {[%clk 0:02:57.4]} 5. Bg2 {[%clk 0:03:01.3]} 5...
O-O {[%clk 0:02:57.9]} 6. O-O {[%clk 0:03:02.2]} 6... Bf5 {[%clk 0:02:58.2]} 7.
Nc3 {[%clk 0:03:02.4]} 7... Ne4 {[%clk 0:02:58.6]} 8. Nxe4 {[%clk 0:03:01.2]}
8... Bxe4 {[%clk 0:02:59]} 9. Be3 {[%clk 0:03:01.9]} 9... c5 {[%clk 0:02:54.9]}
10. Qd2 {[%clk 0:02:58.8]} 10... Qb6 {[%clk 0:02:54.8]} 11. Rad1 {[%clk
0:02:53.7]} 11... Nc6 {[%clk 0:02:54.2]} 12. d5 {[%clk 0:02:48.5]} 12... Nb4
{[%clk 0:02:53.3]} 13. b3 {[%clk 0:02:43.5]} 13... Qa5 {[%clk 0:02:52.6]} 14.
Bh3 {[%clk 0:02:28.5]} 14... Qxa2 {[%clk 0:02:41.2]} 15. Ng5 {[%clk 0:01:53.4]}
15... Qxd2 {[%clk 0:02:32.7]} 16. Rxd2 {[%clk 0:01:26.7]} 16... Bc2 {[%clk
0:02:29.8]} 17. Rxc2 {[%clk 0:01:16.1]} 17... Nxc2 {[%clk 0:02:29.3]} 18. Bd2
{[%clk 0:01:16.3]} 18... Nd4 {[%clk 0:02:28.7]} 0-1

[Event "*** Titled Tuesday Blitz"]
[Site "Chess.com"]
[Date "2021.03.30"]
[Round "11"]
[White "Leo_C"]
[Black "Sergey85Rodchenkov"]
[Result "1/2-1/2"]
[WhiteElo "2399"]
[BlackElo "2520"]
[TimeControl "180+1"]
[EndTime "12:04:34 PDT"]
[Termination "Game drawn by agreement"]

1. d4 {[%clk 0:03:00.9]} 1... Nf6 {[%clk 0:02:59.5]} 2. c4 {[%clk 0:02:59.9]}
2... e6 {[%clk 0:02:59.2]} 3. Nc3 {[%clk 0:02:59.4]} 3... Bb4 {[%clk 0:02:58.9]}
4. e3 {[%clk 0:02:59.4]} 4... c5 {[%clk 0:02:58.6]} 5. d5 {[%clk 0:02:57.7]}
5... b5 {[%clk 0:02:52.4]} 6. dxe6 {[%clk 0:02:55.6]} 6... fxe6 {[%clk
0:02:51.9]} 7. cxb5 {[%clk 0:02:55.4]} 7... d5 {[%clk 0:02:52]} 8. Bd2 {[%clk
0:02:50.3]} 8... O-O {[%clk 0:02:51.3]} 9. a3 {[%clk 0:02:49.2]} 9... Ba5 {[%clk
0:02:50.5]} 10. Nf3 {[%clk 0:02:42.1]} 10... Nbd7 {[%clk 0:02:47.7]} 11. Rb1
{[%clk 0:02:40]} 11... Bb7 {[%clk 0:02:38.1]} 12. b4 {[%clk 0:02:32.9]} 12...
cxb4 {[%clk 0:02:37.9]} 13. axb4 {[%clk 0:02:32.7]} 13... Bb6 {[%clk 0:02:38.2]}
14. Be2 {[%clk 0:02:29.4]} 14... e5 {[%clk 0:02:38.2]} 15. O-O {[%clk
0:02:27.4]} 15... Rc8 {[%clk 0:02:35.2]} 16. Na4 {[%clk 0:02:22.1]} 16... Qe7
{[%clk 0:02:30.7]} 17. Bc3 {[%clk 0:02:10.8]} 17... d4 {[%clk 0:02:24.8]} 18.
exd4 {[%clk 0:02:05.6]} 18... Ne4 {[%clk 0:02:06.1]} 19. Ba1 {[%clk 0:01:58.8]}
19... exd4 {[%clk 0:02:00.9]} 20. Nxb6 {[%clk 0:01:57.2]} 20... Nxb6 {[%clk
0:01:50.6]} 21. Bxd4 {[%clk 0:01:56.5]} 1/2-1/2

[Event "*** Titled Tuesday Blitz"]
[Site "Chess.com"]
[Date "2021.03.30"]
[Round "11"]
[White "Redzishchess"]
[Black "monikarozman"]
[Result "1-0"]
[WhiteElo "2342"]
[BlackElo "2196"]
[TimeControl "180+1"]
[EndTime "12:04:43 PDT"]
[Termination "Redzishchess won by resignation"]

1. f4 {[%clk 0:03:00.9]} 1... d5 {[%clk 0:02:50.9]} 2. Nf3 {[%clk 0:03:01.2]}
2... Nc6 {[%clk 0:02:42.4]} 3. e3 {[%clk 0:03:01.4]} 3... Bg4 {[%clk 0:02:40.7]}
4. Be2 {[%clk 0:03:01.2]} 4... Bxf3 {[%clk 0:02:30.7]} 5. Bxf3 {[%clk
0:03:02.1]} 5... e5 {[%clk 0:02:31]} 6. fxe5 {[%clk 0:03:02.5]} 6... Nxe5 {[%clk
0:02:31.2]} 7. O-O {[%clk 0:03:02.8]} 7... Bd6 {[%clk 0:02:28.6]} 8. Bxd5 {[%clk
0:02:51.3]} 8... Nf6 {[%clk 0:02:28.2]} 9. Bxb7 {[%clk 0:02:50.4]} 9... Rb8
{[%clk 0:02:25.7]} 10. Bf3 {[%clk 0:02:49.9]} 10... Nxf3+ {[%clk 0:02:10.9]} 11.
Qxf3 {[%clk 0:02:49.5]} 11... O-O {[%clk 0:02:10]} 12. Nc3 {[%clk 0:02:49.1]}
12... Rb4 {[%clk 0:01:58.2]} 13. d4 {[%clk 0:02:34.8]} 13... c5 {[%clk
0:01:57.8]} 14. a3 {[%clk 0:02:25.3]} 14... Rb8 {[%clk 0:01:54.2]} 15. Kh1
{[%clk 0:02:17.6]} 15... Qc7 {[%clk 0:01:46.5]} 16. h3 {[%clk 0:01:50.9]} 16...
g6 {[%clk 0:01:34.5]} 17. Qxf6 {[%clk 0:01:48.9]} 1-0